[Event "*** Biggest EVER Titled Tuesday"]
[Site "Chess.com"]
[Date "2018.04.17"]
[Round "5"]
[White "Mikhail_Golubev"]
[Black "BjarkeSahl"]
[Result "1-0"]
[WhiteElo "2421"]
[BlackElo "2203"]
[TimeControl "180+2"]
[EndTime "14:07:48 PDT"]
[Termination "Mikhail_Golubev won by resignation"]

1. e4 {[%clk 0:03:01.9]} 1... e5 {[%clk 0:02:51.5]} 2. Nf3 {[%clk 0:02:58.2]}
2... Nc6 {[%clk 0:02:52.3]} 3. Bc4 {[%clk 0:02:55.2]} 3... Bc5 {[%clk
0:02:51.9]} 4. b4 {[%clk 0:02:54.9]} 4... Bb6 {[%clk 0:02:52.3]} 5. a4 {[%clk
0:02:54.9]} 5... a5 {[%clk 0:02:49.7]} 6. b5 {[%clk 0:02:55]} 6... Nd4 {[%clk
0:02:46]} 7. Nxd4 {[%clk 0:02:54.2]} 7... Bxd4 {[%clk 0:02:46.1]} 8. c3 {[%clk
0:02:54.4]} 8... Bc5 {[%clk 0:02:46.7]} 9. d4 {[%clk 0:02:54.3]} 9... exd4
{[%clk 0:02:46.5]} 10. O-O {[%clk 0:02:54.8]} 10... Ne7 {[%clk 0:02:30.1]} 11.
Bxf7+ {[%clk 0:02:36.6]} 11... Kxf7 {[%clk 0:02:31]} 12. Qh5+ {[%clk 0:02:36.3]}
12... Ng6 {[%clk 0:02:25.5]} 13. Qd5+ {[%clk 0:02:35.7]} 13... Ke8 {[%clk
0:02:21.8]} 14. Qxc5 {[%clk 0:02:35.5]} 14... d6 {[%clk 0:02:07.8]} 15. Qxd4
{[%clk 0:02:35]} 15... Qf6 {[%clk 0:02:09.3]} 16. Qxf6 {[%clk 0:02:30.3]} 16...
gxf6 {[%clk 0:02:10.2]} 17. c4 {[%clk 0:02:18.8]} 17... Be6 {[%clk 0:02:04.8]}
18. Bb2 {[%clk 0:02:14.8]} 18... Ne5 {[%clk 0:01:57.2]} 19. Bxe5 {[%clk
0:02:13.6]} 19... fxe5 {[%clk 0:01:57.7]} 20. Nd2 {[%clk 0:02:12.9]} 20... Rf8
{[%clk 0:01:55.4]} 21. f3 {[%clk 0:02:13.1]} 21... b6 {[%clk 0:01:56.6]} 22. Kf2
{[%clk 0:02:13.8]} 22... Kd7 {[%clk 0:01:50.2]} 23. Ke3 {[%clk 0:02:11.7]} 23...
h5 {[%clk 0:01:49.1]} 24. Rf2 {[%clk 0:02:04.3]} 24... Rf7 {[%clk 0:01:48.9]}
25. Rc1 {[%clk 0:01:54.7]} 25... Rg8 {[%clk 0:01:48.5]} 26. Nf1 {[%clk 0:01:53]}
26... h4 {[%clk 0:01:49.2]} 27. Rcc2 {[%clk 0:01:49.4]} 27... Rfg7 {[%clk
0:01:46.8]} 28. h3 {[%clk 0:01:37.8]} 28... Rf8 {[%clk 0:01:40.8]} 29. Nh2
{[%clk 0:01:36.9]} 29... Rgf7 {[%clk 0:01:40.2]} 30. Ng4 {[%clk 0:01:35.9]}
30... Rf4 {[%clk 0:01:40.8]} 31. Ke2 {[%clk 0:01:33.4]} 31... R8f7 {[%clk
0:01:35.9]} 32. Ne3 {[%clk 0:01:34.1]} 32... Rf8 {[%clk 0:01:36.2]} 33. Nd5
{[%clk 0:01:34.8]} 33... R4f7 {[%clk 0:01:34.3]} 34. Ke3 {[%clk 0:01:32.9]}
34... Rg8 {[%clk 0:01:32.3]} 35. Rfd2 {[%clk 0:01:23]} 35... Kc8 {[%clk
0:01:32.2]} 36. Nxb6+ {[%clk 0:01:19.6]} 36... cxb6 {[%clk 0:01:25.7]} 37. Rxd6
{[%clk 0:01:20.2]} 37... Re8 {[%clk 0:01:13.3]} 38. Rxb6 {[%clk 0:01:19.9]}
38... Rc7 {[%clk 0:01:14.5]} 39. Ra6 {[%clk 0:01:09.9]} 39... Bxc4 {[%clk
0:01:09.9]} 40. Ra8+ {[%clk 0:01:10]} 40... Kd7 {[%clk 0:01:10.7]} 41. Rxe8
{[%clk 0:01:07.6]} 41... Kxe8 {[%clk 0:01:11.3]} 42. b6 {[%clk 0:01:08.7]} 42...
Rc6 {[%clk 0:01:01]} 43. b7 {[%clk 0:01:09.2]} 43... Rb6 {[%clk 0:01:02.4]} 44.
Rxc4 {[%clk 0:01:10.1]} 44... Rxb7 {[%clk 0:01:03.8]} 45. Rc5 {[%clk 0:01:10.8]}
45... Rb3+ {[%clk 0:01:04.4]} 46. Kf2 {[%clk 0:01:11.5]} 46... Rb2+ {[%clk
0:01:05.3]} 47. Kg1 {[%clk 0:01:12.4]} 1-0

[Event "*** Biggest EVER Titled Tuesday"]
[Site "Chess.com"]
[Date "2018.04.17"]
[Round "5"]
[White "grzechu96"]
[Black "ChadBiryani"]
[Result "1-0"]
[WhiteElo "2454"]
[BlackElo "2254"]
[TimeControl "180+2"]
[EndTime "14:07:53 PDT"]
[Termination "grzechu96 won by resignation"]

1. e4 {[%clk 0:03:01.9]} 1... d6 {[%clk 0:02:58.5]} 2. d4 {[%clk 0:02:57.8]}
2... Nf6 {[%clk 0:02:59.9]} 3. Nc3 {[%clk 0:02:59]} 3... c6 {[%clk 0:03:01.2]}
4. a4 {[%clk 0:02:45.3]} 4... Qa5 {[%clk 0:02:49.5]} 5. Bd2 {[%clk 0:02:20.2]}
5... e5 {[%clk 0:02:37.2]} 6. Nd5 {[%clk 0:02:02.2]} 6... Qd8 {[%clk 0:02:37.1]}
7. Nxf6+ {[%clk 0:02:03.5]} 7... Qxf6 {[%clk 0:02:37.9]} 8. Be3 {[%clk
0:02:02.9]} 8... Nd7 {[%clk 0:02:32.7]} 9. Nf3 {[%clk 0:01:48.2]} 9... Be7
{[%clk 0:02:30.5]} 10. Bd3 {[%clk 0:01:41.1]} 10... exd4 {[%clk 0:02:21.7]} 11.
Bxd4 {[%clk 0:01:41.2]} 11... Ne5 {[%clk 0:02:22.7]} 12. Nxe5 {[%clk 0:01:32.2]}
12... dxe5 {[%clk 0:02:23.7]} 13. Be3 {[%clk 0:01:33.3]} 13... Qg6 {[%clk
0:02:22.7]} 14. O-O {[%clk 0:01:33.5]} 14... Bh3 {[%clk 0:02:23.3]} 15. Qf3
{[%clk 0:01:34.2]} 15... Bg4 {[%clk 0:02:23.4]} 16. Qg3 {[%clk 0:01:35.6]} 16...
Bf6 {[%clk 0:01:59.1]} 17. f3 {[%clk 0:01:21.5]} 17... Be6 {[%clk 0:01:57.9]}
18. Qf2 {[%clk 0:01:22.7]} 18... h5 {[%clk 0:01:52.3]} 19. Bxa7 {[%clk
0:01:19.1]} 19... h4 {[%clk 0:01:49]} 20. Be3 {[%clk 0:01:16.7]} 20... h3 {[%clk
0:01:41.6]} 21. g3 {[%clk 0:01:17.2]} 21... Be7 {[%clk 0:01:23.3]} 22. Bc5
{[%clk 0:00:41.4]} 22... Bg5 {[%clk 0:01:23.9]} 23. a5 {[%clk 0:00:37.5]} 23...
Rh6 {[%clk 0:01:18.9]} 24. Rfe1 {[%clk 0:00:35.9]} 24... Qf6 {[%clk 0:01:14.5]}
25. Kh1 {[%clk 0:00:32.6]} 25... Bg4 {[%clk 0:01:08.7]} 26. fxg4 {[%clk
0:00:32.6]} 26... Qd8 {[%clk 0:01:08]} 27. Bc4 {[%clk 0:00:31.3]} 27... Rf6
{[%clk 0:01:08.2]} 28. Qe2 {[%clk 0:00:31.1]} 28... Qc8 {[%clk 0:01:08.4]} 29.
Rf1 {[%clk 0:00:31.1]} 29... Rxf1+ {[%clk 0:01:08.3]} 30. Rxf1 {[%clk
0:00:31.8]} 30... f6 {[%clk 0:01:09.4]} 31. b4 {[%clk 0:00:32.2]} 31... Qd7
{[%clk 0:01:07]} 32. Rd1 {[%clk 0:00:31]} 32... Qc7 {[%clk 0:01:06.9]} 33. Bb3
{[%clk 0:00:31.5]} 33... Rd8 {[%clk 0:01:06.2]} 34. Rxd8+ {[%clk 0:00:29.8]}
34... Qxd8 {[%clk 0:01:08.1]} 35. Qd3 {[%clk 0:00:31.2]} 35... Qc8 {[%clk
0:01:08.4]} 36. Qc4 {[%clk 0:00:29.4]} 1-0

[Event "*** Biggest EVER Titled Tuesday"]
[Site "Chess.com"]
[Date "2018.04.17"]
[Round "5"]
[White "Karina_Oparina"]
[Black "Andreikka"]
[Result "0-1"]
[WhiteElo "2154"]
[BlackElo "2792"]
[TimeControl "180+2"]
[EndTime "14:08:03 PDT"]
[Termination "Andreikka won by resignation"]

1. d4 {[%clk 0:02:59.9]} 1... d5 {[%clk 0:02:59.5]} 2. c4 {[%clk 0:02:59.1]}
2... c6 {[%clk 0:03:00.5]} 3. Nf3 {[%clk 0:02:58.8]} 3... Nf6 {[%clk 0:02:59.5]}
4. e3 {[%clk 0:02:57.7]} 4... Bf5 {[%clk 0:02:57.8]} 5. Nc3 {[%clk 0:02:57.2]}
5... e6 {[%clk 0:02:58.3]} 6. Nh4 {[%clk 0:02:56.8]} 6... Be4 {[%clk 0:02:58.2]}
7. f3 {[%clk 0:02:56.6]} 7... Bg6 {[%clk 0:02:59.2]} 8. Nxg6 {[%clk 0:02:55.4]}
8... hxg6 {[%clk 0:03:00.8]} 9. c5 {[%clk 0:02:42.1]} 9... Qc7 {[%clk 0:02:41]}
10. f4 {[%clk 0:02:40]} 10... b6 {[%clk 0:02:33.8]} 11. b4 {[%clk 0:02:24]}
11... a5 {[%clk 0:02:32.5]} 12. cxb6 {[%clk 0:02:21.8]} 12... Qxb6 {[%clk
0:02:32.5]} 13. bxa5 {[%clk 0:02:22.4]} 13... Qxa5 {[%clk 0:02:31]} 14. Bd2
{[%clk 0:02:17.2]} 14... Bb4 {[%clk 0:02:09.1]} 15. Qc2 {[%clk 0:02:12.2]} 15...
Nbd7 {[%clk 0:01:57.5]} 16. Be2 {[%clk 0:01:58.7]} 16... O-O {[%clk 0:01:44.6]}
17. O-O {[%clk 0:01:58.4]} 17... Rfc8 {[%clk 0:01:41.7]} 18. a3 {[%clk
0:01:54.3]} 18... Be7 {[%clk 0:01:35.1]} 19. Ne4 {[%clk 0:01:30]} 19... Qd8
{[%clk 0:01:33.6]} 20. Nxf6+ {[%clk 0:01:23]} 20... gxf6 {[%clk 0:01:26.9]} 21.
Bd3 {[%clk 0:01:07.5]} 21... f5 {[%clk 0:01:26.3]} 22. Bb4 {[%clk 0:01:05.8]}
22... c5 {[%clk 0:01:25.3]} 23. dxc5 {[%clk 0:00:59]} 23... Bxc5 {[%clk
0:01:18.9]} 24. Qd2 {[%clk 0:00:45.3]} 24... Qb6 {[%clk 0:01:11.9]} 25. Rae1
{[%clk 0:00:35.4]} 25... Rab8 {[%clk 0:01:00.9]} 26. Bxc5 {[%clk 0:00:26]} 26...
Nxc5 {[%clk 0:01:00.9]} 27. Rb1 {[%clk 0:00:20.4]} 27... Qa7 {[%clk 0:01:01.9]}
28. Rxb8 {[%clk 0:00:05.8]} 28... Rxb8 {[%clk 0:01:02.4]} 29. Rb1 {[%clk
0:00:07.2]} 29... Rxb1+ {[%clk 0:00:59]} 30. Bxb1 {[%clk 0:00:08.3]} 30... Qxa3
{[%clk 0:01:00.4]} 31. Kf2 {[%clk 0:00:09.3]} 31... Qb3 {[%clk 0:00:51.7]} 32.
Qc2 {[%clk 0:00:09.3]} 32... Qb6 {[%clk 0:00:52.1]} 33. Qd2 {[%clk 0:00:09.8]}
33... Qxb1 {[%clk 0:00:51.7]} 0-1

[Event "*** Biggest EVER Titled Tuesday"]
[Site "Chess.com"]
[Date "2018.04.17"]
[Round "5"]
[White "Zhani-Z"]
[Black "MattyDPerrine"]
[Result "1-0"]
[WhiteElo "2414"]
[BlackElo "2243"]
[TimeControl "180+2"]
[EndTime "14:08:09 PDT"]
[Termination "Zhani-Z won on time"]

1. e4 {[%clk 0:02:56.4]} 1... c5 {[%clk 0:03:01]} 2. Nf3 {[%clk 0:02:57]} 2...
e6 {[%clk 0:03:02.1]} 3. g3 {[%clk 0:02:56.6]} 3... Nf6 {[%clk 0:03:02.6]} 4.
Nc3 {[%clk 0:02:56.5]} 4... d5 {[%clk 0:03:03]} 5. exd5 {[%clk 0:02:57.5]} 5...
exd5 {[%clk 0:03:04.9]} 6. d4 {[%clk 0:02:58.2]} 6... Nc6 {[%clk 0:02:55.6]} 7.
Bg2 {[%clk 0:02:57]} 7... Bg4 {[%clk 0:02:56.6]} 8. dxc5 {[%clk 0:02:36.8]} 8...
Bxc5 {[%clk 0:02:58.5]} 9. O-O {[%clk 0:02:37.5]} 9... O-O {[%clk 0:02:57.5]}
10. a3 {[%clk 0:02:25.2]} 10... d4 {[%clk 0:02:48.2]} 11. Ne2 {[%clk 0:02:20.1]}
11... a5 {[%clk 0:02:19.1]} 12. h3 {[%clk 0:02:20.3]} 12... Bh5 {[%clk
0:02:19.2]} 13. Nf4 {[%clk 0:02:21.2]} 13... Bg6 {[%clk 0:02:15.9]} 14. Nxg6
{[%clk 0:02:17.6]} 14... hxg6 {[%clk 0:02:17.8]} 15. Ne1 {[%clk 0:02:17.4]}
15... Rc8 {[%clk 0:02:12]} 16. Nd3 {[%clk 0:02:18.1]} 16... Bd6 {[%clk
0:02:13.1]} 17. Bg5 {[%clk 0:02:16.5]} 17... Qc7 {[%clk 0:02:13]} 18. Qd2 {[%clk
0:02:14.4]} 18... Ne5 {[%clk 0:01:58]} 19. Rac1 {[%clk 0:02:13]} 19... Nfd7
{[%clk 0:01:38.1]} 20. Nxe5 {[%clk 0:01:43.2]} 20... Bxe5 {[%clk 0:01:36.7]} 21.
Qe2 {[%clk 0:01:38]} 21... Rfe8 {[%clk 0:01:09.3]} 22. Qf3 {[%clk 0:01:38.1]}
22... Nc5 {[%clk 0:00:58]} 23. Bd2 {[%clk 0:01:23]} 23... b6 {[%clk 0:00:48.1]}
24. h4 {[%clk 0:01:21.6]} 24... f5 {[%clk 0:00:38.4]} 25. h5 {[%clk 0:01:21.3]}
25... Ne4 {[%clk 0:00:39.5]} 26. Rfd1 {[%clk 0:01:16.8]} 26... Qf7 {[%clk
0:00:21.2]} 27. Bh3 {[%clk 0:00:57.8]} 27... Nd6 {[%clk 0:00:15.2]} 28. hxg6
{[%clk 0:00:52.1]} 28... Qxg6 {[%clk 0:00:17.1]} 29. Kg2 {[%clk 0:00:46.6]}
29... Rf8 {[%clk 0:00:05.1]} 30. Re1 {[%clk 0:00:47.4]} 1-0

[Event "*** Biggest EVER Titled Tuesday"]
[Site "Chess.com"]
[Date "2018.04.17"]
[Round "5"]
[White "KNVB"]
[Black "Anar_Aliakbarov"]
[Result "1-0"]
[WhiteElo "2586"]
[BlackElo "2378"]
[TimeControl "180+2"]
[EndTime "14:08:10 PDT"]
[Termination "KNVB won by resignation"]

1. d4 {[%clk 0:02:59.5]} 1... d5 {[%clk 0:02:57.4]} 2. Bf4 {[%clk 0:02:44.8]}
2... Nf6 {[%clk 0:02:54.8]} 3. e3 {[%clk 0:02:42.4]} 3... e6 {[%clk 0:02:55.8]}
4. Nf3 {[%clk 0:02:42]} 4... Bd6 {[%clk 0:02:57.1]} 5. Nbd2 {[%clk 0:02:35.8]}
5... Bxf4 {[%clk 0:02:57.1]} 6. exf4 {[%clk 0:02:36.9]} 6... O-O {[%clk
0:02:58.6]} 7. Bd3 {[%clk 0:02:32.5]} 7... b6 {[%clk 0:02:59.7]} 8. Qe2 {[%clk
0:02:32.8]} 8... a5 {[%clk 0:02:59.1]} 9. O-O {[%clk 0:02:22.8]} 9... Ba6 {[%clk
0:02:58.5]} 10. Bxa6 {[%clk 0:02:23.8]} 10... Nxa6 {[%clk 0:02:58.8]} 11. c3
{[%clk 0:02:25.7]} 11... c5 {[%clk 0:03:00]} 12. Rfe1 {[%clk 0:02:21.9]} 12...
c4 {[%clk 0:02:59.7]} 13. a4 {[%clk 0:02:07.3]} 13... Rb8 {[%clk 0:02:55.7]} 14.
Nf1 {[%clk 0:01:55.5]} 14... b5 {[%clk 0:02:56]} 15. axb5 {[%clk 0:01:57.3]}
15... Rxb5 {[%clk 0:02:56.9]} 16. Ne3 {[%clk 0:01:58.7]} 16... Qb8 {[%clk
0:02:56.2]} 17. Nd1 {[%clk 0:01:59.6]} 17... Qxf4 {[%clk 0:02:56.2]} 18. Ne5
{[%clk 0:02:00.6]} 18... Rfb8 {[%clk 0:02:40.9]} 19. g3 {[%clk 0:02:01.2]} 19...
Qf5 {[%clk 0:02:32.6]} 20. Nc6 {[%clk 0:01:48.6]} 20... R8b7 {[%clk 0:02:27.4]}
21. b4 {[%clk 0:01:17.1]} 21... cxb3 {[%clk 0:02:12.5]} 22. Ne7+ {[%clk
0:01:11.9]} 22... Rxe7 {[%clk 0:02:06.7]} 23. Qxb5 {[%clk 0:01:13.3]} 23... Nc7
{[%clk 0:02:00.8]} 24. Qxb3 {[%clk 0:01:03]} 24... Ne4 {[%clk 0:01:53.3]} 25.
Qb1 {[%clk 0:00:30.4]} 25... Qf3 {[%clk 0:01:40.7]} 26. Re3 {[%clk 0:00:27.5]}
26... Qh5 {[%clk 0:01:33.2]} 27. Qd3 {[%clk 0:00:14]} 27... Nd6 {[%clk
0:01:03.7]} 28. Rxa5 {[%clk 0:00:12.8]} 28... Nc4 {[%clk 0:01:01.7]} 29. Qxc4
{[%clk 0:00:09.6]} 29... Qxd1+ {[%clk 0:01:01.6]} 30. Qf1 {[%clk 0:00:10.7]}
30... Qg4 {[%clk 0:00:57.2]} 31. Ra7 {[%clk 0:00:09.3]} 31... g6 {[%clk
0:00:55.4]} 32. Qb1 {[%clk 0:00:08.1]} 32... Kf8 {[%clk 0:00:45.2]} 33. Rxc7
{[%clk 0:00:06.1]} 33... Rxc7 {[%clk 0:00:45.5]} 34. Qb8+ {[%clk 0:00:07.1]}
34... Kg7 {[%clk 0:00:47.1]} 35. Qxc7 {[%clk 0:00:08.3]} 1-0

[Event "*** Biggest EVER Titled Tuesday"]
[Site "Chess.com"]
[Date "2018.04.17"]
[Round "5"]
[White "r31415"]
[Black "vuqaresedli"]
[Result "0-1"]
[WhiteElo "2224"]
[BlackElo "2312"]
[TimeControl "180+2"]
[EndTime "14:08:20 PDT"]
[Termination "vuqaresedli won by resignation"]

1. e4 {[%clk 0:03:01.9]} 1... c6 {[%clk 0:03:00.9]} 2. d4 {[%clk 0:03:02.3]}
2... d5 {[%clk 0:03:02.4]} 3. f3 {[%clk 0:03:03.9]} 3... g6 {[%clk 0:03:02.1]}
4. Nc3 {[%clk 0:03:04.5]} 4... Bg7 {[%clk 0:03:02.7]} 5. Be3 {[%clk 0:03:06.1]}
5... b5 {[%clk 0:03:00.1]} 6. a3 {[%clk 0:02:59.9]} 6... Nf6 {[%clk 0:02:57]} 7.
Nge2 {[%clk 0:02:43.5]} 7... dxe4 {[%clk 0:02:57.6]} 8. fxe4 {[%clk 0:02:44.1]}
8... Ng4 {[%clk 0:02:55.6]} 9. Bf4 {[%clk 0:02:32.1]} 9... e5 {[%clk 0:02:53.5]}
10. dxe5 {[%clk 0:02:29.5]} 10... Qxd1+ {[%clk 0:02:54.1]} 11. Rxd1 {[%clk
0:02:29]} 11... Nxe5 {[%clk 0:02:53.9]} 12. Nd4 {[%clk 0:02:00.8]} 12... a6
{[%clk 0:02:53.9]} 13. Nf3 {[%clk 0:01:59.7]} 13... Nbd7 {[%clk 0:02:52.2]} 14.
Rd6 {[%clk 0:01:41.7]} 14... Bb7 {[%clk 0:02:43.7]} 15. Be2 {[%clk 0:01:25.5]}
15... Ke7 {[%clk 0:02:42.3]} 16. Rd2 {[%clk 0:01:22.7]} 16... h6 {[%clk
0:02:39.2]} 17. O-O {[%clk 0:01:22.2]} 17... Nxf3+ {[%clk 0:02:32.3]} 18. Bxf3
{[%clk 0:01:17.8]} 18... Ne5 {[%clk 0:02:32.3]} 19. Rfd1 {[%clk 0:01:09.7]}
19... Rad8 {[%clk 0:02:32.5]} 20. Rxd8 {[%clk 0:01:04.6]} 20... Rxd8 {[%clk
0:02:32.3]} 21. Rxd8 {[%clk 0:01:05.9]} 21... Kxd8 {[%clk 0:02:34]} 22. Be2
{[%clk 0:01:05.1]} 22... Bc8 {[%clk 0:02:33.8]} 23. Nd1 {[%clk 0:00:54.4]} 23...
Be6 {[%clk 0:02:33.7]} 24. Kf2 {[%clk 0:00:50.6]} 24... Ke7 {[%clk 0:02:32.8]}
25. h3 {[%clk 0:00:49.8]} 25... h5 {[%clk 0:02:25]} 26. b3 {[%clk 0:00:44.9]}
26... Nd7 {[%clk 0:02:16]} 27. Ke3 {[%clk 0:00:36.9]} 27... Be5 {[%clk
0:02:15.1]} 28. Nf2 {[%clk 0:00:35]} 28... Bxf4+ {[%clk 0:02:14]} 29. Kxf4
{[%clk 0:00:35.3]} 29... f6 {[%clk 0:02:14.2]} 30. g4 {[%clk 0:00:32.1]} 30...
g5+ {[%clk 0:02:14.1]} 31. Ke3 {[%clk 0:00:31.8]} 31... h4 {[%clk 0:02:15.5]}
32. Nd3 {[%clk 0:00:25.1]} 32... Kd6 {[%clk 0:02:16.1]} 33. a4 {[%clk
0:00:09.3]} 33... a5 {[%clk 0:02:09.4]} 34. axb5 {[%clk 0:00:07.8]} 34... cxb5
{[%clk 0:02:10.2]} 35. Nb2 {[%clk 0:00:08.6]} 35... Kc6 {[%clk 0:02:10.5]} 36.
c4 {[%clk 0:00:08.1]} 36... b4 {[%clk 0:02:10.6]} 37. Nd3 {[%clk 0:00:06.2]}
37... Kd6 {[%clk 0:01:58.8]} 38. Kd4 {[%clk 0:00:05.4]} 38... Bf7 {[%clk
0:01:58.4]} 39. Bf3 {[%clk 0:00:03.4]} 39... Ne5 {[%clk 0:01:55.1]} 40. Nxe5
{[%clk 0:00:03.3]} 40... fxe5+ {[%clk 0:01:55.5]} 41. Kd3 {[%clk 0:00:04.8]}
41... Kc5 {[%clk 0:01:55.8]} 42. Bd1 {[%clk 0:00:05.2]} 42... Be8 {[%clk
0:01:56.2]} 43. Bc2 {[%clk 0:00:05.3]} 43... Bd7 {[%clk 0:01:56.3]} 44. Bd1
{[%clk 0:00:05.4]} 44... Be6 {[%clk 0:01:57.2]} 45. Be2 {[%clk 0:00:03.2]} 45...
a4 {[%clk 0:01:56.1]} 46. Bd1 {[%clk 0:00:02.2]} 46... a3 {[%clk 0:01:56.7]} 47.
Kc2 {[%clk 0:00:02.8]} 47... Kd4 {[%clk 0:01:57]} 48. Bf3 {[%clk 0:00:02.6]}
48... Bf7 {[%clk 0:01:57.2]} 49. Bg2 {[%clk 0:00:03.3]} 49... Bg6 {[%clk
0:01:57.4]} 50. Kb1 {[%clk 0:00:03.4]} 50... Bxe4+ {[%clk 0:01:58.4]} 51. Bxe4
{[%clk 0:00:04.8]} 51... Kxe4 {[%clk 0:01:59.6]} 52. Kc2 {[%clk 0:00:04.3]}
52... Kd4 {[%clk 0:02:00.3]} 53. c5 {[%clk 0:00:05.6]} 53... Kxc5 {[%clk
0:02:00]} 0-1

[Event "*** Biggest EVER Titled Tuesday"]
[Site "Chess.com"]
[Date "2018.04.17"]
[Round "5"]
[White "Alexander_Moskalenko"]
[Black "SabinoBrunello"]
[Result "1-0"]
[WhiteElo "2729"]
[BlackElo "2696"]
[TimeControl "180+2"]
[EndTime "14:08:21 PDT"]
[Termination "Alexander_Moskalenko won by resignation"]

1. d4 {[%clk 0:03:01.9]} 1... d5 {[%clk 0:02:59.8]} 2. Bf4 {[%clk 0:03:01.5]}
2... Nf6 {[%clk 0:03:00.4]} 3. e3 {[%clk 0:02:56.7]} 3... e6 {[%clk 0:03:00.5]}
4. Nd2 {[%clk 0:02:57.2]} 4... c5 {[%clk 0:03:00.8]} 5. c3 {[%clk 0:02:58.6]}
5... Nc6 {[%clk 0:03:01.6]} 6. Ngf3 {[%clk 0:02:59.7]} 6... Bd6 {[%clk
0:03:03.2]} 7. Bg3 {[%clk 0:03:00.4]} 7... O-O {[%clk 0:03:00.7]} 8. Bb5 {[%clk
0:02:58.9]} 8... a6 {[%clk 0:02:55.2]} 9. Bxc6 {[%clk 0:02:59.7]} 9... bxc6
{[%clk 0:02:55.9]} 10. Qa4 {[%clk 0:03:01.3]} 10... cxd4 {[%clk 0:02:36.4]} 11.
cxd4 {[%clk 0:03:00.4]} 11... c5 {[%clk 0:02:33.5]} 12. Bxd6 {[%clk 0:02:29.4]}
12... Qxd6 {[%clk 0:02:32.5]} 13. Qa3 {[%clk 0:02:31.3]} 13... Nd7 {[%clk
0:02:27.2]} 14. Nb3 {[%clk 0:02:26.2]} 14... Rb8 {[%clk 0:02:26.3]} 15. Nxc5
{[%clk 0:02:21.4]} 15... Rb5 {[%clk 0:02:19.9]} 16. Rc1 {[%clk 0:02:18.5]} 16...
Qb6 {[%clk 0:02:18.1]} 17. O-O {[%clk 0:02:06.7]} 17... Ra5 {[%clk 0:02:11.1]}
18. Na4 {[%clk 0:02:07.3]} 18... Qb5 {[%clk 0:02:08.8]} 19. b3 {[%clk
0:02:08.6]} 19... Qb8 {[%clk 0:01:59.1]} 20. Rc3 {[%clk 0:01:41.6]} 20... Nf6
{[%clk 0:01:45.6]} 21. Rfc1 {[%clk 0:01:36.4]} 21... Bd7 {[%clk 0:01:45.5]} 22.
Rc5 {[%clk 0:01:36.6]} 22... Rb5 {[%clk 0:01:43.5]} 23. Rxb5 {[%clk 0:01:36.3]}
23... axb5 {[%clk 0:01:40.6]} 24. Nc5 {[%clk 0:01:37.7]} 24... b4 {[%clk
0:01:37.7]} 25. Qa5 {[%clk 0:01:36.4]} 25... Rc8 {[%clk 0:01:35.2]} 26. Ne5
{[%clk 0:01:35.9]} 26... Be8 {[%clk 0:01:35.9]} 27. f3 {[%clk 0:01:35.5]} 27...
h5 {[%clk 0:01:29.4]} 28. Ned3 {[%clk 0:01:35.3]} 28... h4 {[%clk 0:01:28.7]}
29. Qxb4 {[%clk 0:01:36.3]} 29... Qd6 {[%clk 0:01:27.9]} 30. h3 {[%clk
0:01:22.8]} 30... Nh5 {[%clk 0:01:28.1]} 31. a4 {[%clk 0:01:13.6]} 31... Ng3
{[%clk 0:01:26.6]} 32. Qd2 {[%clk 0:01:15.1]} 32... f6 {[%clk 0:01:23.1]} 33.
Nb7 {[%clk 0:01:08.5]} 33... Rxc1+ {[%clk 0:01:22.8]} 34. Nxc1 {[%clk
0:01:08.9]} 34... Qe7 {[%clk 0:01:24]} 35. Nc5 {[%clk 0:01:08.9]} 35... e5
{[%clk 0:01:15.5]} 36. b4 {[%clk 0:01:04.8]} 36... exd4 {[%clk 0:01:06]} 37.
exd4 {[%clk 0:01:06.5]} 37... g5 {[%clk 0:01:00.9]} 38. b5 {[%clk 0:01:06.7]}
38... Nf5 {[%clk 0:00:54]} 39. b6 {[%clk 0:00:47.6]} 39... Nd6 {[%clk
0:00:51.3]} 40. a5 {[%clk 0:00:46.2]} 40... Bb5 {[%clk 0:00:50.9]} 41. Kf2
{[%clk 0:00:42.6]} 41... Kf7 {[%clk 0:00:48.6]} 42. Qe1 {[%clk 0:00:42.2]} 42...
Qxe1+ {[%clk 0:00:43.9]} 43. Kxe1 {[%clk 0:00:44.1]} 43... Ke7 {[%clk
0:00:42.9]} 44. b7 {[%clk 0:00:44]} 1-0